bitfinex-derivatives/quotes_ETHF0:USTF0_20250620
["timestamp","ask_amount","ask_price","bid_price","bid_amount"]
[1750412765356,24.5734,2552.5,2552.4,4.53652461]
[1750412765756,24.5734,2552.5,2552.4,3.75309461]
[1750412766859,24.5734,2552.5,2552.4,0.6772]
[1750412767248,0.78346,2552.3,2552.2,3.07589461]
[1750412767452,0.78346,2552.3,2552.2,3.85937461]
[1750412767759,0.78346,2552.3,2552.1,0.6839]
[1750412767760,0.78349,2552.2,2552.1,1.46739]
[1750412768360,24.57148,2552.3,2552.2,0.78349]
[1750412769260,30.67948,2552.3,2552.2,0.78349]
[1750412769962,30.67948,2552.3,2552.2,3.85938461]
[1750412775163,29.896,2552.3,2552.2,3.85938461]
[1750412775867,30.67946,2552.3,2552.2,3.85938461]
[1750412776568,29.896,2552.3,2552.2,3.85938461]
[1750412777370,30.67946,2552.3,2552.2,3.85938461]
[1750412778468,29.896,2552.3,2552.2,3.85938461]
[1750412778666,30.92742953,2552.3,2552.2,3.85938461]
[1750412780775,31.71088953,2552.3,2552.2,3.85938461]
[1750412781363,30.67946,2552.3,2552.2,3.85938461]
[1750412781569,31.71087561,2552.3,2552.2,3.85938461]
[1750412781864,30.92741561,2552.3,2552.2,3.85938461]
[1750412782069,31.71087561,2552.3,2552.2,3.85938461]
[1750412782477,31.71087561,2552.3,2552.2,0.78349]
[1750412783273,0.78349,2552.2,2551.8,6.28369461]
[1750412783468,0.78358,2552.0,2551.9,0.78356]
[1750412783667,1.81555595,2552.0,2551.9,0.78356]
[1750412783871,2.32827595,2552.0,2551.9,0.78356]
[1750412784067,3.11182595,2552.0,2551.9,0.78356]
[1750412784672,2.32827595,2552.0,2551.9,0.78356]
[1750412784868,3.11182595,2552.0,2551.9,0.78356]
[1750412785078,1.81552595,2552.0,2551.9,0.78356]
[1750412785377,1.03197595,2552.0,2551.9,0.78356]
[1750412785574,24.56754,2552.1,2552.0,0.78355]
[1750412785774,25.5988257,2552.1,2552.0,0.78355]
[1750412786168,7.1352857,2552.1,2552.0,3.85944461]
[1750412786378,30.9192857,2552.1,2552.0,3.85944461]
[1750412786581,24.8152857,2552.1,2552.0,3.85944461]
[1750412788084,1.0312857,2552.1,2552.0,3.85944461]
[1750412788283,24.8152857,2552.1,2552.0,3.85944461]
[1750412788883,1.0312857,2552.1,2552.0,3.85944461]
[1750412789085,24.8152857,2552.1,2552.0,3.85944461]
[1750412789477,25.5988057,2552.1,2552.0,3.85944461]
[1750412789976,24.8152857,2552.1,2552.0,3.85944461]
[1750412792076,25.5988057,2552.1,2552.0,3.85944461]
[1750412792278,24.8152857,2552.1,2552.0,3.85944461]
[1750412793682,25.5988057,2552.1,2552.0,3.85944461]
[1750412793880,0.78358,2551.9,2551.8,4.6791]
[1750412794184,30.67058,2551.9,2551.8,3.8955]
[1750412794389,31.7018475,2551.9,2551.8,3.2078]
[1750412794591,0.78368,2551.6,2551.5,3.8899]
[1750412794779,0.78374,2551.4,2551.3,0.78374]
[1750412795089,0.78377,2551.3,2551.2,3.2078]
[1750412795291,0.78377,2551.3,2551.2,3.9916]
[1750412795487,0.78377,2551.3,2551.2,3.2078]
[1750412795986,2.11387,2551.3,2551.2,3.2078]
[1750412799191,0.7838,2551.2,2551.1,0.6821]
[1750412799388,24.5688,2551.2,2551.1,0.6821]
[1750412800289,24.5688,2551.2,2551.1,1.46593]
[1750412800895,23.785,2551.2,2551.1,4.54182461]
[1750412801490,6.105,2551.6,2551.2,1.9595]
[1750412801688,6.105,2551.6,2551.5,7.06740461]
[1750412802093,45.142,2552.0,2551.6,1.95919]
[1750412802295,51.247,2552.0,2551.9,3.85947461]
[1750412802592,6.105,2552.0,2551.9,3.85947461]
[1750412802792,6.105,2552.0,2551.9,5.19997461]
[1750412804596,6.88855,2552.0,2551.9,3.85947461]
[1750412805793,6.105,2552.0,2551.9,3.85947461]
[1750412807099,6.105,2552.0,2551.9,0.78358]
[1750412807297,6.105,2552.0,2551.9,3.85947461]
[1750412810199,6.88855,2552.0,2551.9,3.85947461]
[1750412811204,6.105,2552.0,2551.9,3.85947461]
[1750412811903,29.888,2552.0,2551.9,3.85947461]
[1750412813102,30.67155,2552.0,2551.9,3.85947461]
[1750412813307,29.888,2552.0,2551.9,3.85947461]
[1750412813904,30.67155,2552.0,2551.9,3.85947461]
[1750412815506,29.888,2552.0,2551.9,3.85947461]
[1750412816004,30.67155,2552.0,2551.9,3.85947461]
[1750412817704,29.888,2552.0,2551.9,3.85947461]
[1750412818199,23.783,2552.0,2551.9,3.85947461]
[1750412818904,24.56655,2552.0,2551.9,3.85947461]
[1750412822604,23.783,2552.0,2551.9,3.85947461]
[1750412823111,6.88452,2552.2,2552.1,0.78352]
[1750412823411,30.66452,2552.2,2552.1,0.78352]
[1750412824905,29.881,2552.2,2552.0,0.6247]
[1750412825115,0.78358,2552.0,2551.9,0.78356]
[1750412825315,24.56258,2552.0,2551.9,0.78356]
[1750412826505,2.09275,2552.1,2552.0,0.78355]
[1750412826724,24.56255,2552.1,2552.0,0.78355]
[1750412828214,0.78355,2552.1,2552.0,0.78355]
[1750412828416,6.88455,2552.1,2552.0,0.78355]
[1750412828611,30.66255,2552.1,2552.0,0.78355]
[1750412829817,31.69570849,2552.1,2552.0,0.78355]
[1750412835822,31.69570849,2552.1,2552.0,1.42525]
[1750412837522,31.69570849,2552.1,2552.0,0.6417]
[1750412837920,31.69570849,2552.1,2552.0,1.42525]
[1750412838320,1.81670849,2552.1,2552.0,1.42525]
[1750412838520,31.69370849,2552.1,2552.0,1.42525]
[1750412841329,1.03315849,2552.1,2552.0,1.42525]
[1750412841522,23.775,2552.1,2552.0,1.42525]
[1750412841717,24.81075126,2552.1,2552.0,2.78475]
[1750412843227,6.88449,2552.3,2552.2,0.78349]
[1750412843427,31.69513897,2552.3,2552.2,0.78349]
[1750412845829,31.69413897,2552.3,2552.2,0.78349]
[1750412846025,1.81913897,2552.3,2552.2,0.78349]
[1750412846231,7.13664897,2552.3,2552.2,0.78349]
[1750412846431,29.875,2552.3,2552.2,0.78349]
[1750412847133,30.65846,2552.3,2552.2,0.78349]
[1750412847333,29.875,2552.3,2552.2,0.78349]
[1750412848729,6.88039,2552.6,2552.5,0.78337]
[1750412848930,31.68643541,2552.6,2552.5,3.85926461]
[1750412849638,1.03404541,2552.6,2552.5,3.85926461]
[1750412849837,24.80604541,2552.6,2552.5,3.85926461]
[1750412850445,24.80504541,2552.6,2552.5,3.85926461]
[1750412851148,24.80504541,2552.6,2552.5,0.78337]
[1750412851343,25.58841541,2552.6,2552.5,0.78337]
[1750412851643,27.54971541,2552.6,2552.5,0.78337]
[1750412852633,0.78346,2552.4,2552.3,0.78342]
[1750412853037,24.55346,2552.4,2552.3,0.78342]
[1750412853444,23.77,2552.4,2552.3,0.78342]
[1750412854039,24.55343,2552.4,2552.3,0.78342]
[1750412855449,23.77,2552.4,2552.3,3.85931461]
[1750412856046,3.99117,2552.7,2552.6,0.78337]
[1750412856243,34.8885769,2552.7,2552.6,0.78337]
[1750412856544,34.8875469,2552.7,2552.6,0.78337]
[1750412857551,34.1042069,2552.7,2552.6,0.78337]
[1750412857751,34.8875469,2552.7,2552.6,0.78337]
[1750412858052,34.1042069,2552.7,2552.6,0.78337]
[1750412858550,28.0072069,2552.7,2552.6,0.78337]
[1750412858753,1.0324069,2552.7,2552.6,0.78337]
[1750412858950,9.3038,2553.1,2553.0,0.78325]
[1750412859151,34.88123667,2553.1,2553.0,0.78325]
[1750412861055,37.17389128,2553.1,2552.6,1.95843]
[1750412861359,26.94295667,2553.0,2552.9,0.78328]
[1750412861547,1.81045667,2553.0,2552.9,0.78328]
[1750412861746,25.57545667,2553.0,2552.9,0.78328]
[1750412863050,24.54826,2553.0,2552.9,0.78328]
[1750412863652,0.78326,2553.0,2552.9,0.78328]
[1750412863852,23.764,2553.0,2552.9,0.78328]
[1750412864053,23.764,2553.0,2552.9,3.85917461]
[1750412864250,9.3038,2553.1,2553.0,0.78325]
[1750412864456,34.87695541,2553.1,2553.0,0.78325]
[1750412866058,5.01695541,2553.1,2553.0,0.78325]
[1750412866258,25.57215541,2553.1,2553.0,0.78325]
[1750412866558,24.54622,2553.1,2553.0,0.78325]
[1750412867060,23.763,2553.1,2553.0,0.78325]
[1750412867257,3.32262,2553.4,2552.9,5.03405461]
[1750412867258,0.78318,2553.3,2552.9,5.03405461]
[1750412867449,1.02519455,2553.2,2553.1,3.85911461]
[1750412867654,10.70992,2553.5,2553.4,0.78312]
[1750412867854,35.49712565,2553.5,2553.4,0.78312]
[1750412868260,34.47192,2553.5,2553.4,0.78312]
[1750412868450,35.49718549,2553.5,2553.4,0.78312]
[1750412868652,34.47192,2553.5,2553.4,0.78312]
[1750412869255,26.9688,2553.5,2553.4,0.78312]
[1750412869663,26.9688,2553.5,2553.3,3.85901461]
[1750412869857,0.78315,2553.3,2553.2,0.78316]
[1750412870153,0.78318,2553.2,2553.1,0.6253]
[1750412870362,10.43699461,2553.2,2552.8,5.16606]
[1750412870560,8.1443,2553.2,2553.1,0.78322]
[1750412870757,2.04933,2553.1,2553.0,0.78322]
[1750412871158,1.2661,2553.1,2553.0,0.78322]
[1750412871351,29.855,2553.2,2553.1,0.78322]
[1750412871555,6.87818,2553.3,2553.2,0.78318]
[1750412871759,30.63818,2553.3,2553.2,0.78318]
[1750412872260,30.63718,2553.3,2553.2,0.78318]
[1750412872659,31.90838,2553.3,2553.2,0.78318]
[1750412874761,29.854,2553.3,2553.2,0.78318]
[1750412874965,23.759,2553.3,2553.2,0.78318]
[1750412875167,6.87808,2553.6,2553.2,1.95795]
[1750412875365,6.095,2553.6,2553.5,0.78309]
[1750412875663,6.095,2553.6,2553.5,3.85898461]
[1750412875664,7.11947234,2553.6,2553.5,3.85898461]
[1750412875859,29.853,2553.6,2553.5,3.85898461]
[1750412876055,30.63606,2553.6,2553.5,3.85898461]
[1750412876255,30.63606,2553.6,2553.5,0.78309]
[1750412876666,29.853,2553.6,2553.5,0.78309]
[1750412876867,29.853,2553.6,2553.5,0.78308]
[1750412876868,24.54109,2553.6,2553.5,0.78308]
[1750412877271,23.758,2553.6,2553.5,0.78308]
[1750412877664,24.54106,2553.6,2553.5,0.78308]
[1750412878365,0.78309,2553.5,2553.4,3.99091]
[1750412878762,24.54009,2553.5,2553.4,3.99091]
[1750412879268,23.757,2553.5,2553.4,3.99091]
[1750412879671,23.757,2553.5,2553.4,3.99092]
[1750412880162,6.87405,2553.7,2553.6,0.78306]
[1750412880363,30.63005,2553.7,2553.6,0.78306]
[1750412881966,0.78305,2553.7,2553.6,0.78304]
[1750412882265,0.783,2553.9,2553.8,0.78298]
[1750412882469,31.6522785,2553.9,2553.8,0.78298]
[1750412882668,0.78303,2553.8,2553.7,0.783]
[1750412882863,1.8073085,2553.8,2553.7,0.783]
[1750412883070,0.78305,2553.7,2553.6,0.78303]
[1750412883365,0.78305,2553.7,2553.4,3.99089]
[1750412883366,0.78309,2553.5,2553.4,3.99089]
[1750412883566,24.53909,2553.5,2553.4,3.99089]
[1750412883973,25.80749,2553.5,2553.4,3.99089]
[1750412884966,0.78319,2553.3,2553.1,0.669]
[1750412885166,0.78319,2553.3,2553.2,0.78317]
[1750412885469,0.78323,2553.1,2553.0,0.78321]
[1750412885781,24.53923,2553.1,2553.0,0.78321]
[1750412885979,0.78325,2553.0,2552.9,3.99106]
[1750412886276,2.05165,2553.0,2552.9,3.99106]
[1750412887575,1.2684,2553.0,2552.9,3.99106]
[1750412888072,2.05165,2553.0,2552.9,3.99106]
[1750412889268,0.6493,2553.2,2553.0,0.78322]
[1750412889478,24.53923,2553.1,2553.0,0.78322]
[1750412889873,24.53823,2553.1,2553.0,0.78322]
[1750412890277,6.09,2553.2,2553.1,0.78322]
[1750412890577,29.845,2553.2,2553.1,0.78322]
[1750412890772,30.62819,2553.2,2553.1,0.78322]
[1750412891673,0.78319,2553.2,2553.1,3.85911461]
[1750412891874,23.755,2553.2,2553.1,3.85911461]
[1750412892677,24.53819,2553.2,2553.1,3.85911461]
[1750412892872,0.78319,2553.2,2553.1,3.85911461]
[1750412893073,24.54219,2553.2,2553.1,3.85911461]
[1750412894575,24.54219,2553.2,2553.1,0.78322]
[1750412895075,25.55571673,2553.2,2553.1,0.78322]
[1750412895274,24.54219,2553.2,2553.1,0.78322]
[1750412895676,25.55584636,2553.2,2553.1,0.78322]
[1750412895876,24.54219,2553.2,2553.1,0.78322]
[1750412896075,6.87317,2553.3,2553.2,0.78319]
[1750412896380,31.64188402,2553.3,2553.2,0.78319]
[1750412896569,30.85871402,2553.3,2553.2,0.78319]
[1750412896774,24.76871402,2553.3,2553.2,0.78319]
[1750412896975,23.755,2553.3,2553.2,0.78319]
[1750412897277,1.01388011,2553.3,2553.2,0.78319]
[1750412897481,24.76888011,2553.3,2553.2,0.78319]
[1750412897679,24.53816,2553.3,2553.2,0.78319]
[1750412898180,25.55138331,2553.3,2553.2,0.78319]
[1750412898571,24.76822331,2553.3,2553.2,0.78319]
[1750412898775,1.01322331,2553.3,2553.2,2.09379]
[1750412898976,0.7831,2553.6,2553.5,0.78307]
[1750412899273,31.6412992,2553.6,2553.5,0.78307]
[1750412899483,1.7962992,2553.6,2553.5,0.78307]
[1750412899682,1.0131992,2553.6,2553.5,1.47217]
[1750412899883,24.7681992,2553.6,2553.5,1.47217]
[1750412900271,25.5512592,2553.6,2553.5,1.47217]
[1750412900473,1.0131992,2553.6,2553.5,4.67997]
[1750412901784,23.755,2553.7,2553.6,0.78306]
[1750412901973,24.76914055,2553.7,2553.6,0.78306]
[1750412902787,25.55217055,2553.7,2553.6,0.78306]
[1750412904688,1.01414055,2553.7,2553.6,0.78306]
[1750412904886,24.76814055,2553.7,2553.6,3.85895461]
[1750412905086,24.76714055,2553.7,2553.6,3.85895461]
[1750412905684,0.78299,2553.9,2553.8,0.783]
[1750412905883,25.54967531,2553.9,2553.8,0.783]
[1750412908401,1.79665531,2553.9,2553.8,0.783]
[1750412911809,1.79665531,2553.9,2553.5,6.97279461]
[1750412911810,1.01368531,2553.9,2553.5,6.97279461]
[1750412912007,1.95748,2553.9,2553.5,3.8969]
[1750412912205,0.78306,2553.6,2553.5,4.67996]
[1750412912895,0.78306,2553.6,2553.5,7.75585461]
[1750412914004,0.78306,2553.6,2553.5,1.47219]
[1750412917707,0.78306,2553.6,2553.1,5.16583]
[1750412918009,0.78319,2553.3,2553.2,0.78315]
[1750412918209,0.78319,2553.2,2553.1,4.6429]
[1750412920412,0.78319,2553.2,2553.1,3.991]
[1750412921308,8.0415,2553.4,2553.2,0.78316]
[1750412921309,0.78318,2553.3,2553.2,0.78316]
[1750412922202,0.78318,2553.3,2553.2,3.85905461]
[1750412923908,0.78319,2553.2,2553.1,3.991]
[1750412930212,0.78319,2553.2,2553.1,3.2078]
[1750412930611,0.78319,2553.2,2553.1,3.99102]
[1750412934817,0.78319,2553.2,2553.1,3.2078]
[1750412938624,24.53619,2553.2,2553.1,3.2078]
[1750412945028,25.54911526,2553.2,2553.1,3.2078]
[1750412949735,0.78325,2553.0,2552.9,0.6748]
[1750412950032,6.87225,2553.0,2552.9,0.6748]
[1750412950222,7.88517526,2553.0,2552.9,0.6748]
[1750412951729,11.09297526,2553.0,2552.9,0.6748]
[1750412952434,0.78337,2552.6,2552.5,5.14549461]
[1750412952826,0.78337,2552.6,2552.5,3.85929461]
[1750412953027,0.78337,2552.6,2552.5,3.07589461]
[1750412953524,0.78337,2552.6,2552.5,3.85929461]
[1750412953721,0.78337,2552.6,2552.5,0.646]
[1750412953926,10.31632328,2552.6,2552.0,3.07589461]
[1750412954125,10.31632328,2552.6,2551.8,3.07589461]
[1750412954126,5.1665,2552.3,2551.8,3.07589461]
[1750412954331,0.78359,2551.9,2551.8,4.34539461]
[1750412954735,0.78359,2551.9,2551.8,5.12901461]
[1750412955334,0.78359,2551.9,2551.8,4.34539461]
[1750412955528,0.78359,2551.9,2551.8,5.12901461]
[1750412956830,0.78359,2551.9,2551.8,1.2695]
[1750412957036,1.95883,2552.1,2551.8,3.07589461]
[1750412957238,1.95889,2552.0,2551.5,2.0051]
[1750412957536,0.78368,2551.6,2551.5,2.78879]
[1750412957831,0.78368,2551.6,2551.5,0.6356]
[1750412960029,0.78368,2551.6,2551.5,1.9132]
[1750412960234,0.78368,2551.6,2551.5,2.69691]
[1750412960434,0.78368,2551.6,2551.5,1.9132]
[1750412960630,0.78368,2551.6,2551.5,2.69691]
[1750412960936,3.99148,2551.6,2551.5,0.6356]
[1750412961135,4.67788,2551.6,2551.5,0.6356]
[1750412963931,3.8942,2551.6,2551.1,1.2776]
[1750412964139,0.7838,2551.2,2551.1,3.85972461]
[1750412965133,0.7838,2551.2,2551.1,3.07589461]
[1750412965640,0.7838,2551.2,2551.1,3.85972461]
[1750412968541,0.7838,2551.3,2551.2,0.78377]
[1750412968843,0.7838,2551.2,2551.1,0.78382]
[1750412969041,0.7838,2551.2,2551.1,3.85971461]
[1750412969541,0.78383,2551.1,2551.0,0.6382]
[1750412969732,0.78383,2551.1,2551.0,3.71409461]
[1750412969934,0.78382,2551.3,2551.2,0.78377]
[1750412970242,0.78383,2551.1,2551.0,3.71409461]
[1750412970540,0.78383,2551.1,2551.0,4.49795461]
[1750412970737,0.78383,2551.1,2551.0,1.42206]
[1750412970934,0.78383,2551.1,2551.0,0.6382]
[1750412971144,0.78395,2550.7,2550.6,3.2078]
[1750412971341,0.78395,2550.7,2550.6,7.06766461]
[1750412971737,0.78395,2550.7,2550.6,8.33746461]
[1750412972240,0.78395,2550.7,2550.6,3.2078]
[1750412972542,0.78395,2550.7,2550.6,3.99178]
[1750412972731,2.63346,2551.0,2550.6,3.2078]
[1750412973042,0.78395,2550.7,2550.6,3.99176]
[1750412973533,1.3557,2550.9,2550.7,0.78392]
[1750412973534,0.78394,2550.8,2550.7,0.78392]
[1750412973944,2.13961,2550.9,2550.8,0.78392]
[1750412974242,2.13961,2550.9,2550.7,0.78393]
[1750412974542,2.13962,2550.9,2550.8,0.78392]
[1750412974743,2.13961,2550.9,2550.8,0.78392]
[1750412975339,0.6738,2551.0,2550.7,3.07589461]
[1750412975553,6.091,2551.1,2551.0,0.78386]
[1750412975736,30.64083,2551.1,2551.0,0.78386]
[1750412976046,30.64083,2551.1,2551.0,1.46666]
[1750412976946,1.42813,2551.1,2551.0,1.46666]
[1750412977138,31.28613,2551.1,2551.0,1.46666]
[1750412977458,3.99162,2551.2,2551.1,0.78383]
[1750412977639,33.0648,2551.2,2551.1,0.78383]
[1750412978139,3.2078,2551.2,2551.1,0.78383]
[1750412978341,33.0648,2551.2,2551.1,0.78383]
[1750412978744,33.8486,2551.2,2551.1,0.78383]
[1750412980152,0.78383,2551.1,2551.0,1.46664]
[1750412981349,0.78383,2551.1,2551.0,0.6828]
[1750412982457,1.43613,2551.1,2551.0,1.46666]
[1750412982853,0.78391,2550.9,2550.6,6.51177]
[1750412983046,0.78391,2550.9,2550.8,0.6456]
[1750412983351,24.55091,2550.9,2550.8,0.6456]
[1750412983546,23.767,2550.9,2550.8,1.42952]
[1750412983751,23.767,2550.9,2550.8,2.77352]
[1750412983952,24.55089,2550.9,2550.8,2.77352]
[1750412984355,23.767,2550.9,2550.8,2.77352]
[1750412984855,24.55089,2550.9,2550.8,2.77352]
[1750412987658,23.767,2550.9,2550.8,2.77352]
[1750412988954,24.55089,2550.9,2550.8,2.77352]
[1750412989361,23.767,2550.9,2550.8,2.77352]
[1750412989560,24.55089,2550.9,2550.8,2.77352]
[1750412990558,24.55089,2550.9,2550.8,1.42952]
[1750412992752,25.57787797,2550.9,2550.8,1.42952]
[1750412994260,1.81087797,2550.9,2550.8,1.42952]
[1750412994464,7.90287797,2550.9,2550.8,1.42952]
[1750412999462,31.66987797,2550.9,2550.8,1.42952]
[1750412999663,1.81087797,2550.9,2550.8,1.42952]
[1750412999960,3.2078,2551.2,2551.1,0.78383]
[1750413000162,1.02874723,2551.2,2551.1,3.85972461]
[1750413000358,1.02939549,2551.2,2551.0,5.03555461]
[1750413000557,6.87375,2551.4,2551.3,0.78377]
[1750413000755,7.90304003,2551.4,2551.3,0.78377]
[1750413001166,7.11929003,2551.4,2551.3,0.78377]
[1750413001371,1.02929003,2551.4,2551.3,0.78377]
[1750413001567,1.02929003,2551.4,2551.3,2.10477]
[1750413002268,30.63967,2551.7,2551.6,0.78368]
[1750413002459,31.66824258,2551.7,2551.6,0.78368]
[1750413003157,31.66824258,2551.7,2550.9,5.16751]
[1750413003158,33.96046719,2551.7,2550.9,5.16751]
[1750413003359,0.78376,2551.4,2551.3,0.78374]
[1750413003560,3.2078,2551.5,2551.4,0.78374]
[1750413003561,3.99152,2551.5,2551.4,0.78374]
[1750413003760,5.70103293,2551.5,2551.4,0.78374]
[1750413004072,5.01973293,2551.5,2551.4,0.78374]
[1750413004278,10.32601293,2551.5,2551.4,0.78374]
[1750413004773,11.10971293,2551.5,2551.4,0.78374]
[1750413005679,0.78377,2551.4,2551.3,0.78374]
[1750413005879,1.45187,2551.4,2551.3,0.78374]
[1750413006263,25.21683,2551.4,2551.3,0.78374]
[1750413006468,0.78373,2551.4,2551.3,0.78374]
[1750413006675,1.45183,2551.4,2551.3,0.78374]
[1750413007569,0.78387,2551.1,2551.0,0.78384]
[1750413007778,0.78389,2551.0,2550.9,0.78388]
[1750413007977,9.16589461,2551.1,2550.6,3.2078]
[1750413008282,0.78394,2550.8,2550.7,0.78392]
[1750413008474,0.6695,2550.9,2550.8,0.78392]
[1750413008475,24.4335,2550.9,2550.8,0.78392]
[1750413008684,25.21739,2550.9,2550.8,0.78392]
[1750413009972,25.21739,2550.9,2550.8,1.46542]
[1750413010382,6.09,2551.1,2551.0,0.78386]
[1750413010682,3.07589461,2553.0,2551.4,0.78373]
[1750413010683,4.66104,2551.5,2551.4,0.78373]
[1750413010872,4.23554893,2551.5,2551.4,3.85962461]
[1750413011178,3.9915,2551.5,2551.4,3.85962461]
[1750413011369,3.2078,2551.5,2551.4,3.85962461]
[1750413011679,3.9915,2551.5,2551.4,3.85962461]
[1750413011982,3.2078,2551.5,2551.4,3.85962461]
[1750413012173,3.9915,2551.5,2551.4,3.85962461]
[1750413012481,3.9915,2551.5,2551.4,0.78373]
[1750413012680,0.78377,2551.4,2551.3,0.78373]
[1750413012877,1.41477,2551.4,2551.3,0.78373]
[1750413013378,0.78382,2551.2,2551.1,0.7838]
[1750413013779,8.16387,2551.3,2551.2,0.7838]
[1750413014989,7.3801,2551.3,2551.0,1.95962]
[1750413015178,8.16387,2551.3,2551.2,0.7838]
[1750413015484,6.87377,2551.3,2551.2,0.7838]
[1750413015676,8.23407,2551.3,2551.2,0.7838]
[1750413017282,6.09,2551.3,2551.2,0.7838]
[1750413017585,29.869,2551.3,2551.2,0.7838]
[1750413017887,6.09,2551.3,2551.2,0.7838]
[1750413020388,6.09,2551.3,2551.2,3.85969461]
[1750413021587,3.2078,2551.5,2551.4,0.78373]
[1750413021778,9.2968,2551.5,2551.4,0.78373]
[1750413022591,9.2968,2551.5,2551.4,3.85962461]
[1750413022992,9.2968,2551.5,2551.4,5.14112461]
[1750413023288,10.0805,2551.5,2551.4,0.78373]
[1750413025386,0.78373,2551.4,2551.3,0.6447]
[1750413025592,1.41055,2551.4,2551.3,0.78377]
[1750413026686,28.83902461,2551.7,2551.1,2.59304]
[1750413026687,6.089,2551.7,2551.4,0.78373]
[1750413026884,1.02735711,2551.6,2551.5,0.7837]
[1750413027191,1.02735711,2551.6,2551.5,1.4417]
[1750413027378,24.83635711,2551.6,2551.5,1.4417]
[1750413028993,1.02735711,2551.6,2551.5,1.4417]
[1750413029182,3.2078,2552.1,2552.0,0.78355]
[1750413029383,4.23579412,2552.1,2552.0,0.78355]
[1750413029687,1.95851,2552.5,2552.0,0.78355]
[1750413029688,9.3318,2552.5,2552.0,1.95888]
[1750413029994,9.3318,2552.5,2552.4,0.78343]
[1750413029995,33.9422,2552.5,2552.4,0.78343]
[1750413030193,34.9703096,2552.5,2552.4,0.78343]
[1750413030484,4.2359096,2552.5,2552.4,0.78343]
[1750413031391,3.2078,2552.5,2552.4,0.78343]
[1750413031792,3.2078,2552.5,2552.4,1.42853]
[1750413032894,0.78345,2552.4,2552.3,0.78343]
[1750413033586,3.99121,2552.5,2552.4,0.78343]
[1750413034391,3.2078,2552.5,2552.4,0.78343]
[1750413034796,3.9912,2552.5,2552.4,0.78343]
[1750413036196,3.2078,2552.5,2552.4,0.78343]
[1750413037395,3.9912,2552.5,2552.4,0.78343]
[1750413037594,3.2078,2552.5,2552.4,0.78343]
[1750413039500,3.9912,2552.5,2552.4,0.78343]
[1750413040199,0.78346,2552.4,2552.3,0.78343]
[1750413040496,7.60289461,2552.5,2552.0,0.6519]
[1750413040696,5.82229461,2552.3,2552.2,0.78347]
[1750413041302,0.78354,2552.1,2552.0,0.78353]
[1750413041501,13.18923461,2552.1,2552.0,0.78353]
[1750413041705,13.18923461,2552.1,2551.9,0.78357]
[1750413041706,0.78358,2552.0,2551.9,0.78357]
[1750413041894,2.15898,2552.0,2551.9,0.78357]
[1750413045214,1.3754,2552.0,2551.9,0.78357]
[1750413045410,25.1924,2552.0,2551.9,0.78357]
[1750413045715,25.97595,2552.0,2551.9,0.78357]
[1750413045917,25.1924,2552.0,2551.9,0.78357]
[1750413046716,25.97595,2552.0,2551.9,0.78357]
[1750413047517,25.1924,2552.0,2551.9,0.78357]
[1750413047819,25.97595,2552.0,2551.9,0.78357]
[1750413060023,24.60055,2552.0,2551.9,0.78357]
[1750413060726,23.817,2552.0,2551.9,0.78357]
[1750413060927,24.60055,2552.0,2551.9,0.78357]
[1750413061228,10.11334,2552.1,2552.0,0.78355]
[1750413061520,6.122,2552.1,2552.0,3.85944461]
[1750413061726,29.901,2552.1,2552.0,0.78355]
[1750413062227,30.68452,2552.1,2552.0,0.78355]
[1750413065515,33.89232,2552.1,2552.0,0.78355]
[1750413066029,0.78361,2551.9,2551.8,0.78357]
[1750413066330,24.56161,2551.9,2551.8,0.78357]
[1750413066931,23.778,2551.9,2551.8,0.78357]
[1750413067429,24.56158,2551.9,2551.8,0.78357]
[1750413070130,25.59500045,2551.9,2551.8,0.78357]
[1750413073629,24.81142045,2551.9,2551.8,0.78357]
[1750413074134,25.59500045,2551.9,2551.8,0.78357]
[1750413074326,24.81142045,2551.9,2551.8,0.78357]
[1750413074733,9.3088,2552.1,2552.0,0.78355]
[1750413074928,1.03409453,2552.1,2552.0,3.85944461]
[1750413075129,3.2078,2552.4,2552.3,0.78346]
[1750413077534,3.2078,2552.4,2552.3,2.14766]
[1750413078334,3.99123,2552.4,2552.3,2.14766]
[1750413078537,3.2078,2552.4,2552.3,2.14766]
[1750413078941,0.78349,2552.3,2552.2,0.78346]
[1750413080242,4.63515,2552.4,2552.3,0.78346]
[1750413081842,1.42735,2552.4,2552.3,0.78346]
[1750413088844,3.2078,2552.6,2552.5,0.7834]
[1750413089146,9.3078,2552.6,2552.5,0.7834]
[1750413089536,9.3078,2552.6,2552.5,2.8471]
[1750413089945,9.3078,2552.6,2552.5,1.4665]
[1750413090138,10.09117,2552.6,2552.5,1.4665]
[1750413092244,0.78344,2552.5,2552.4,0.7834]
[1750413092447,1.40684,2552.5,2552.4,0.7834]
[1750413093240,0.6234,2552.5,2552.4,0.7834]
[1750413093449,1.4068,2552.5,2552.4,0.7834]
[1750413094045,0.6234,2552.5,2552.4,0.7834]
[1750413094647,10.09119,2552.6,2552.5,0.7834]
[1750413098146,11.43279,2552.6,2552.5,0.7834]
[1750413098652,8.22499,2552.6,2552.5,0.7834]
[1750413099344,6.88339,2552.6,2552.5,0.7834]
[1750413100452,7.90983315,2552.6,2552.5,0.7834]
[1750413103660,7.12644315,2552.6,2552.5,0.7834]
[1750413104256,7.90981315,2552.6,2552.5,0.7834]
[1750413106857,7.91141011,2552.6,2552.5,0.7834]
[1750413108454,1.02804011,2552.6,2552.5,0.7834]
[1750413108862,1.02804011,2552.6,2552.5,3.85929461]
[1750413109247,1.02804011,2552.6,2552.5,5.15429461]
[1750413109450,6.091,2552.9,2552.8,0.78331]
[1750413109752,7.11892666,2552.9,2552.8,0.78331]
[1750413112559,7.11892666,2552.9,2552.7,0.631]